[Event "Leca Open 2022"]
[Site "Leca da Palmeira"]
[Date "2022.07.31"]
[Round "1.13"]
[White "Almeida, Francisco Nunes Viei"]
[Black "Grieve, Harry"]
[Result "1/2-1/2"]
[ECO "B47"]
[WhiteElo "1660"]
[BlackElo "2390"]
[Annotator "RC"]
[PlyCount "99"]
[EventDate "2022.08.02"]
[EventType "swiss"]
[EventCountry "POR"]
[SourceTitle "playchess.com"]
[Source "ChessBase"]
[SourceQuality "1"]
[TimeControl "5400+30"]

1. e4 {[%emt 0:00:04]} c5 {[%emt 0:00:04]} 2. Nf3 {[%emt 0:00:10]} e6 {[%emt 0:00:06]} 3. d4 {[%emt 0:00:16]} cxd4 {[%emt 0:00:05]} 4. Nxd4 {[%emt 0:00:04]} Nc6 {[%emt 0:00:04]} 5. Nc3 {[%emt 0:02:17]} Qc7 {[%emt 0:00:05]} 6. Nxc6 {[%emt 0:03:08]} bxc6 {[%emt 0:00:06]} 7. Bd3 {[%emt 0:00:30]} d5 {[%emt 0:00:07]} 8. O-O {[%emt 0:02:40]} Nf6 {[%emt 0:00:05]} 9. Re1 {[%emt 0:11:45]} Be7 {[%emt 0:00:09]} 10. Bg5 {[%emt 0:04:48]} d4 {[%emt 0:03:38]} 11. Nb1 {[%emt 0:06:01]} e5 {[%emt 0:00:55]} 12. Nd2 {[%emt 0:00:52]} O-O {[%emt 0:00:32]} 13. Nc4 {[%emt 0:01:45]} Be6 {[%emt 0:00:14]} 14. Bh4 {[%emt 0:03:23]} Rae8 {[%emt 0:00:47]} 15. Bg3 {[%emt 0:07:04]} Nd7 {[%emt 0:00:07]} 16. Qd2 {[%emt 0:01:57]} f6 {[%emt 0:02:17]} 17. f4 {[%emt 0:02:37]} exf4 {[%emt 0:02:21]} 18. Bxf4 {[%emt 0:01:14]} Ne5 {[%emt 0:00:07]} 19. Bxe5 {[%emt 0:07:33]} fxe5 {[%emt 0:00:02]} 20. Rf1 {[%emt 0:00:44]} h6 {[%emt 0:00:26]} 21. Qa5 {[%emt 0:01:56]} Qxa5 {[%emt 0:00:06]} 22. Nxa5 {[%emt 0:00:15]} Bd7 {[%emt 0:04:12]} 23. Rxf8+ {[%emt 0:02:32]} Kxf8 {[%emt 0:00:41]} 24. Nc4 {[%emt 0:01:53]} Bf6 {[%emt 0:02:14]} 25. a4 {[%emt 0:01:57]} Ke7 {[%emt 0:01:12]} 26. b4 {[%emt 0:01:12]} Rb8 {[%emt 0:01:11]} 27. Rb1 {[%emt 0:05:16]} h5 {[%emt 0:00:49]} 28. Kf2 {[%emt 0:01:53]} g6 {[%emt 0:00:36]} 29. h3 {[%emt 0:01:13]} Ke6 {[%emt 0:00:56]} 30. Ke2 {[%emt 0:01:04]} Be7 {[%emt 0:00:29]} 31. b5 {[%emt 0:09:37]} cxb5 {[%emt 0:00:06]} 32. Nd2 {[%emt 0:01:23]} a6 {[%emt 0:02:19]} 33. axb5 {[%emt 0:01:21]} axb5 {[%emt 0:01:13]} 34. Ra1 {[%emt 0:00:34]} Bd8 {[%emt 0:04:12]} 35. Nf3 {[%emt 0:04:23]} Kd6 {[%emt 0:04:58]} 36. Ra6+ {[%emt 0:01:21]} Rb6 {[%emt 0:01:34]} 37. Ra8 {[%emt 0:00:20]} Bf6 {[%emt 0:27:52]} 38. Rg8 {[%emt 0:03:17]} Ke7 {[%emt 0:00:01]} 39. Rxg6 {[%emt 0:00:51]} Be8 {[%emt 0:00:00]} 40. Rh6 {[%emt 0:01:12]} Kf8 {[%emt 0:00:01]} 41. g4 {[%emt 0:00:54]} hxg4 {[%emt 0:05:13]} 42. hxg4 {[%emt 0:00:05]} Rc6 {[%emt 0:00:05]} 43. g5 {[%emt 0:00:42]} Bg7 {[%emt 0:00:01]} 44. Rxc6 Bxc6 {[%emt 0:00:01]} 45. Kf2 {[%emt 0:01:53]} Kf7 {[%emt 0:03:20]} 46. Kg3 {[%emt 0:00:17]} Kg6 {[%emt 0:00:12]} 47. Kg4 {[%emt 0:01:00]} Bd7+ {[%emt 0:00:00]} 48. Kh4 {[%emt 0:00:01]} Bc6 {[%emt 0:00:34]} 49. Kg4 {[%emt 0:00:04]} Bd7+ {[%emt 0:00:02]} 50. Kh4 {[%emt 0:00:02]} 1/2-1/2

[Event "Leca Open 2022"]
[Site "Leca da Palmeira"]
[Date "2022.07.31"]
[Round "1.15"]
[White "Jibuti, Nata"]
[Black "Pierrot, Facundo"]
[Result "0-1"]
[ECO "B08"]
[WhiteElo "1639"]
[BlackElo "2371"]
[Annotator "RC"]
[PlyCount "134"]
[EventDate "2022.08.02"]
[EventType "swiss"]
[EventCountry "POR"]
[SourceTitle "playchess.com"]
[Source "ChessBase"]
[SourceQuality "1"]
[TimeControl "5400+30"]

1. e4 {[%emt 0:00:04]} d6 {[%emt 0:00:09]} 2. d4 {[%emt 0:00:11]} Nf6 {[%emt 0:00:07]} 3. Nc3 {[%emt 0:00:23]} g6 {[%emt 0:00:07]} 4. Nf3 {[%emt 0:00:15]} Bg7 {[%emt 0:00:15]} 5. Be2 {[%emt 0:00:18]} O-O {[%emt 0:00:20]} 6. O-O {[%emt 0:00:18]} c6 {[%emt 0:01:02]} 7. Bf4 {[%emt 0:04:39]} b5 {[%emt 0:01:31]} 8. e5 {[%emt 0:07:28]} Nh5 {[%emt 0:05:58]} 9. Be3 {[%emt 0:05:02]} b4 {[%emt 0:03:09]} 10. Ne4 {[%emt 0:16:19]} f5 {[%emt 0:04:34]} 11. exf6 {[%emt 0:02:01]} exf6 {[%emt 0:00:06]} 12. d5 {[%emt 0:08:05]} c5 {[%emt 0:03:10]} 13. Nxc5 {[%emt 0:10:53]} dxc5 {[%emt 0:01:44]} 14. Bxc5 {[%emt 0:00:05]} Re8 {[%emt 0:04:35]} 15. Bxb4 {[%emt 0:03:33]} Nf4 {[%emt 0:04:08]} 16. Bb5 {[%emt 0:09:49]} Re4 {[%emt 0:05:02]} 17. Re1 {[%emt 0:04:59]} Rxe1+ {[%emt 0:07:58]} 18. Qxe1 {[%emt 0:02:41]} Bf5 {[%emt 0:09:14]} 19. Qd2 {[%emt 0:10:14]} Bh6 {[%emt 0:01:59]} 20. Qd4 {[%emt 0:00:49]} Qb6 {[%emt 0:03:41]} 21. Qxb6 {[%emt 0:02:15]} axb6 {[%emt 0:00:05]} 22. d6 {[%emt 0:01:58]} Bd7 {[%emt 0:08:19]} 23. Nd4 {[%emt 0:01:12]} Bxb5 {[%emt 0:00:26]} 24. Nxb5 {[%emt 0:00:04]} Nc6 {[%emt 0:00:09]} 25. Ba3 {[%emt 0:01:34]} Kf7 {[%emt 0:00:26]} 26. Re1 {[%emt 0:00:49]} Re8 {[%emt 0:01:59]} 27. Rd1 {[%emt 0:01:16]} Rd8 {[%emt 0:00:44]} 28. c4 {[%emt 0:02:07]} Bf8 {[%emt 0:00:28]} 29. b4 {[%emt 0:01:59]} Ra8 {[%emt 0:01:52]} 30. c5 {[%emt 0:00:52]} bxc5 {[%emt 0:01:59]} 31. bxc5 {[%emt 0:00:03]} Ra5 {[%emt 0:00:06]} 32. Rb1 {[%emt 0:00:33]} Ne6 {[%emt 0:00:10]} 33. Kf1 {[%emt 0:00:31]} f5 {[%emt 0:01:07]} 34. Ke1 {[%emt 0:00:12]} Bg7 {[%emt 0:00:06]} 35. Kd2 {[%emt 0:00:22]} Ned4 {[%emt 0:00:46]} 36. Nxd4 {[%emt 0:00:42]} Bxd4 {[%emt 0:00:06]} 37. Rb7+ {[%emt 0:01:00]} Ke6 {[%emt 0:00:10]} 38. Rc7 {[%emt 0:02:13]} Bxc5 {[%emt 0:02:01]} 39. Bxc5 {[%emt 0:00:52]} Rxc5 {[%emt 0:00:05]} 40. Rxh7 {[%emt 0:00:31]} Rd5+ {[%emt 0:00:28]} 41. Kc3 {[%emt 0:00:31]} Rxd6 {[%emt 0:00:06]} 42. h4 {[%emt 0:00:33]} Ne7 {[%emt 0:01:26]} 43. Kc2 {[%emt 0:00:49]} Nd5 {[%emt 0:00:29]} 44. Rh6 {[%emt 0:00:22]} Ke5 {[%emt 0:04:39]} 45. Rh8 {[%emt 0:00:37]} Rc6+ {[%emt 0:00:33]} 46. Kb3 {[%emt 0:00:18]} Rc3+ {[%emt 0:01:54]} 47. Kb2 {[%emt 0:00:04]} Rc4 {[%emt 0:00:14]} 48. g3 {[%emt 0:00:24]} Nf6 {[%emt 0:01:21]} 49. Rh6 {[%emt 0:00:19]} Ng4 {[%emt 0:00:27]} 50. Rxg6 {[%emt 0:00:04]} Nxf2 {[%emt 0:00:05]} 51. h5 {[%emt 0:00:41]} Ng4 {[%emt 0:00:39]} 52. h6 {[%emt 0:00:43]} Rc8 {[%emt 0:03:35]} 53. h7 {[%emt 0:00:35]} Rh8 {[%emt 0:00:07]} 54. Rg7 {[%emt 0:00:14]} Nf6 {[%emt 0:00:23]} 55. Re7+ {[%emt 0:00:11]} Kd6 {[%emt 0:00:09]} 56. Ra7 {[%emt 0:00:50]} Nxh7 {[%emt 0:00:12]} 57. Rg7 {[%emt 0:00:48]} Nf6 {[%emt 0:00:08]} 58. a4 {[%emt 0:00:28]} Ne4 {[%emt 0:05:38]} 59. Rg6+ {[%emt 0:01:04]} Ke5 {[%emt 0:00:21]} 60. Kb3 {[%emt 0:00:43]} Rh3 {[%emt 0:02:29]} 61. a5 {[%emt 0:00:42]} f4 {[%emt 0:01:21]} 62. a6 {[%emt 0:00:24]} f3 {[%emt 0:00:27]} 63. a7 {[%emt 0:00:13]} Rh8 {[%emt 0:00:05]} 64. Rh6 {[%emt 0:00:48]} Ra8 {[%emt 0:00:08]} 65. Rh5+ {[%emt 0:00:09]} Kd4 {[%emt 0:00:05]} 66. Rf5 {[%emt 0:00:35]} f2 {[%emt 0:00:06]} 67. Kb4 {[%emt 0:00:52]} Rxa7 {[%emt 0:00:09]} 0-1

[Event "Leca Open 2022"]
[Site "Leca da Palmeira"]
[Date "2022.07.31"]
[Round "2.1"]
[White "Motylev, Alexander"]
[Black "Pandey Srishti"]
[Result "1-0"]
[ECO "C54"]
[WhiteElo "2632"]
[BlackElo "2101"]
[Annotator "TA"]
[PlyCount "84"]
[EventDate "2022.08.02"]
[EventType "swiss"]
[EventCountry "POR"]
[SourceTitle "playchess.com"]
[Source "ChessBase"]
[SourceQuality "1"]
[TimeControl "5400+30"]

{[%evp 10,84,24,11,28,27,23,27,34,28,36,26,26,0,26,7,17,48,27,21,21,31,26,10,13,23,57,56,61,54,64,57,67,49,66,56,60,62,65,57,96,95,166,132,217,222,214,143,298,260,276,268,281,235,237,240,283,281,343,247,427,420,411,396,450,441,451,429,499,349,627,365,1729,1665,1291,38,1375]} 1. e4 {[%emt 0:00:06]} e5 {[%emt 0:00:08]} 2. Nf3 {[%emt 0:00:05]} Nc6 {[%emt 0:00:05]} 3. Bc4 {[%emt 0:00:08]} Bc5 {[%emt 0:00:06]} 4. c3 {[%emt 0:00:06]} Nf6 {[%emt 0:00:06]} 5. d3 {[%emt 0:00:04]} O-O {[%emt 0:00:31]} 6. Nbd2 {[%emt 0:00:24][%cal Bb1d2,Bd2e4,Be4g3][%mdl 32]} d5 {[%emt 0:00:31] C54: Giuoco Piano: 4 c3 Nf6, main lines with 5 d4 and 5 d3.} 7. exd5 {[%emt 0:00:11]} Nxd5 {[%emt 0:00:06]} 8. Ne4 {[%emt 0:00:05]} Be7 {[%emt 0:00:08] White has an edge.} 9. O-O {[%emt 0:00:42]} Kh8 {[%emt 0:07:30]} 10. Re1 {[%emt 0:03:02]} f6 {[%emt 0:00:12]} 11. a4 {[%emt 0:00:42] [#]} a5 $146 {[%emt 0:00:49]} ({Predecessor:} 11... Nb6 12. Bb3 a5 13. Ng3 Nd7 14. d4 exd4 15. Nxd4 Nxd4 16. Qxd4 Ne5 17. Qe4 Bd6 {1-0 (37) Gruenter,M (2249)-Feher,A (2398) Pardubice 2014}) 12. Ng3 {[%emt 0:03:38]} Bc5 {[%emt 0:16:30]} 13. h3 {[%emt 0:09:16]} Nce7 {[%emt 0:04:00]} 14. d4 {[%emt 0:02:58]} exd4 {[%emt 0:08:33]} 15. Nxd4 {[%emt 0:00:52]} c6 {[%emt 0:09:36]} 16. Qh5 {[%emt 0:05:43]} Bxd4 {[%emt 0:05:52]} 17. cxd4 {[%emt 0:00:13]} Nb4 {[%emt 0:05:40]} 18. Re4 {[%emt 0:01:28] [#] White wants to mate with Rh4.} Ng6 {[%emt 0:01:10] Inhibits Rh4.} 19. Nf5 $1 $40 {[%emt 0:40:34][%mdl 128] Black needs to defend precisely.} Bxf5 {[%emt 0:05:40]} 20. Qxf5 {[%emt 0:00:09]} Nd5 {[%emt 0:02:24]} 21. Bd2 {[%emt 0:00:55]} Qc8 {[%emt 0:06:11]} 22. Qf3 {[%emt 0:02:59] White is more active.} Qd7 {[%emt 0:03:37]} 23. Rae1 {[%emt 0:01:04]} f5 {[%emt 0:12:47]} 24. R4e2 {[%emt 0:01:35]} Nc7 {[%emt 0:01:06] Black is on the road to losing.} 25. Bb3 {[%emt 0:05:51]} b6 {[%emt 0:03:00]} (25... Qd8 $16 {might work better.}) 26. Rc1 {[%emt 0:07:37]} Rf6 {[%emt 0:04:15]} (26... Ne7 $16 {was called for.}) 27. Bg5 $18 {[%emt 0:02:09] A strong pair of Bishops.} Rd6 {[%emt 0:00:02]} 28. h4 {[%emt 0:02:50][%cal Bh3h4,Bh4h5][%mdl 32] [#] Threatens to win with h5.} Re8 $2 {[%emt 0:02:40]} (28... h6 $16) 29. h5 {[%emt 0:01:55]} Rxe2 {[%emt 0:00:12]} 30. Qxe2 {[%emt 0:01:08]} Ne6 {[%emt 0:00:32]} 31. Bxe6 {[%emt 0:03:02]} (31. hxg6 Nxg5 32. Qe5 Ne4 $16) 31... Rxe6 {[%emt 0:00:01]} 32. Qa6 {[%emt 0:00:30]} Nf8 {[%emt 0:00:48]} 33. Qxb6 {[%emt 0:00:44]} Qe8 {[%emt 0:01:13]} 34. Qd8 {[%emt 0:01:48]} ({Much less strong is} 34. Qxa5 h6 $18) 34... Qf7 $2 {[%emt 0:00:04]} (34... Kg8 35. Qxe8 (35. Qxa5 Qxh5 36. Bd2 Re4 $18) 35... Rxe8 36. Rxc6 Ne6) 35. h6 {[%emt 0:01:10]} gxh6 {[%emt 0:00:06]} 36. Bf4 {[%emt 0:00:16]} Kg8 {[%emt 0:01:29]} 37. Qxa5 {[%emt 0:00:19]} Ng6 {[%emt 0:00:09]} 38. Bxh6 {[%emt 0:00:35]} Qd7 {[%emt 0:00:45]} 39. d5 {[%emt 0:01:38]} Rd6 {[%emt 0:00:43]} (39... Qxd5 40. Qa8+ Kf7) 40. Rc5 {[%emt 0:01:03] Hoping for Qc3.} f4 $2 {[%emt 0:00:27]} (40... Kf7 41. Qc3 Rxd5 42. Rxc6 Rd1+ 43. Kh2 Qd4 44. Qb3+ Qd5 45. Rc7+ Ke6 46. Rc6+ Kf7 47. Rc7+ Ke6 48. Rc6+ Kf7) 41. Qc3 {[%emt 0:00:27][%cal Rd5c6]} Rxd5 {[%emt 0:00:41]} 42. Rxc6 $2 {[%emt 0:00:41]} ({White has to play} 42. Rxd5 $18 cxd5 43. a5) 42... Re5 $2 {[%mdl 8192] Weighted Error Value: White=0.38/Black=0.37} (42... Ne5 $14 43. Rc8+ Kf7) 1-0

[Event "Leca Open 2022"]
[Site "Leca da Palmeira"]
[Date "2022.07.31"]
[Round "2.2"]
[White "Cordeiro, Joao Carlos Santos F"]
[Black "Perez Candelario, Manuel"]
[Result "0-1"]
[ECO "D02"]
[WhiteElo "2048"]
[BlackElo "2578"]
[Annotator "TA"]
[PlyCount "102"]
[EventDate "2022.08.02"]
[EventType "swiss"]
[EventCountry "POR"]
[SourceTitle "playchess.com"]
[Source "ChessBase"]
[SourceQuality "1"]
[TimeControl "5400+30"]

{[%evp 15,102,-19,-21,-29,-18,-39,-37,-39,-35,-32,-37,-79,-75,-92,-67,-102,-108,-98,-55,-72,-66,-91,-85,-85,-86,-75,-95,-95,-93,-95,-99,-98,-90,-102,-59,-70,-55,-58,-29,-26,-28,-116,-104,-116,-95,-94,-106,-128,-125,-208,-96,-87,-75,-67,-76,-73,-37,-58,-45,-52,-45,-69,-64,-154,-99,-289,-288,-318,-303,-300,-291,-283,-283,-475,-467,-492,-485,-446,-474,-443,-441,-524,-513,-549,-592,-683,-655,-597,-604]} 1. Nf3 {[%emt 0:00:14]} d5 {[%emt 0:00:15]} 2. d4 {[%emt 0:00:58]} Nf6 {[%emt 0:00:07]} 3. g3 {[%emt 0:01:01]} c6 {[%emt 0:00:54]} 4. Bg2 {[%emt 0:00:18]} Bf5 {[%emt 0:00:40]} 5. O-O {[%emt 0:00:28]} e6 {[%emt 0:01:15]} 6. c3 {[%emt 0:02:00]} h6 {[%emt 0:00:33]} 7. Re1 {[%emt 0:03:45]} Nbd7 {[%emt 0:00:28]} 8. Nbd2 {[%emt 0:02:19]} Be7 {[%emt 0:03:22]} 9. Nb3 {[%emt 0:03:46] D02: 1 d4 d5 2 Nf3 sidelines, including 2...Nf6 3 g3 and 2...Nf6 3 Bf4.} O-O {[%emt 0:01:34]} 10. Bf4 {[%emt 0:03:13] [#]} a5 $146 {[%emt 0:00:25]} ({Predecessor:} 10... b6 11. Ne5 Rc8 12. Nd2 g5 13. Nxd7 Nxd7 14. Be3 c5 15. Rc1 cxd4 16. cxd4 Nb8 {½-½ (46) Mocary,M (2096)-Gregor,M (2127) Slovakia 2006}) 11. Ne5 {[%emt 0:03:09] Black is slightly better.} Qb6 {[%emt 0:03:53]} 12. Nxd7 {[%emt 0:02:24]} Nxd7 {[%emt 0:00:30]} 13. Qc1 {[%emt 0:08:14]} Rfd8 {[%emt 0:04:36]} 14. e4 {[%emt 0:03:43]} dxe4 {[%emt 0:00:59]} 15. Bxe4 {[%emt 0:00:59]} Bxe4 {[%emt 0:01:30]} 16. Rxe4 {[%emt 0:00:10][%cal Of4h6]} Bf8 {[%emt 0:05:44]} 17. Re2 {[%emt 0:02:22]} Qb5 {[%emt 0:06:39]} (17... a4 $5 {[%cal Ra4b3]} 18. Nd2 c5 $11) 18. c4 {[%emt 0:07:59]} Qh5 {[%emt 0:00:27]} 19. Qf1 {[%emt 0:03:02]} a4 {[%emt 0:02:04]} 20. Nd2 {[%emt 0:05:13]} c5 {[%emt 0:01:40]} 21. Be3 {[%emt 0:04:33]} Nf6 {[%emt 0:01:56]} 22. dxc5 {[%emt 0:02:58]} Ng4 {[%emt 0:02:25][%csl Gg4][%cal Rh5h2] [#]} 23. Nf3 {[%emt 0:03:10]} Rd3 {[%emt 0:02:24]} ({Of course not} 23... Bxc5 $6 24. Bxc5 Qxc5 25. Re4 $11) (23... Nxe3 $6 24. Rxe3 Qxc5 25. Qe2 $15) 24. Rd1 {[%emt 0:07:50]} Nxe3 {[%emt 0:04:18] Black is more active.} (24... Rad8 {keeps more tension.} 25. Rxd3 Rxd3 26. Re1 Qf5) 25. Rxe3 {[%emt 0:00:40]} Rxe3 {[%emt 0:00:13]} 26. fxe3 {[%emt 0:00:07]} Bxc5 {[%emt 0:00:14]} 27. Qe2 {[%emt 0:04:08]} Qf5 {[%emt 0:01:44]} 28. Nh4 {[%emt 0:06:28]} (28. Kf2 $11) 28... Qe4 $17 {[%emt 0:03:09]} 29. Ng2 {[%emt 0:00:15]} b6 {[%emt 0:02:00]} 30. Qd3 {[%emt 0:01:57]} Qe5 {[%emt 0:00:34]} 31. Rd2 {[%emt 0:04:26]} g5 {[%emt 0:03:55]} 32. Kf1 {[%emt 0:04:42]} (32. Rf2 $17 {was worth a try.}) 32... Kg7 {[%emt 0:07:06]} (32... a3 $19 {is more deadly.} 33. b3 Qa1+ 34. Kf2 Bb4) 33. Ke2 {[%emt 0:01:50]} Qf6 {[%emt 0:02:00] ...Bb4 is the strong threat.} 34. Qc3 {[%emt 0:02:08] Inhibits Bb4.} Qxc3 {[%emt 0:01:37]} 35. bxc3 $15 {[%emt 0:00:05][%mdl 4096] Endgame KRB-KRN} Ra7 {[%emt 0:01:07] Prevents Rd7.} 36. Ne1 {[%emt 0:01:25]} Rc7 {[%emt 0:02:24]} 37. Rb2 {[%emt 0:01:13]} Rc6 {[%emt 0:01:33]} 38. Kd3 {[%emt 0:01:21]} f5 {[%emt 0:01:29]} 39. Nf3 {[%emt 0:00:45] [#]} (39. Ke2 $15) 39... Kf6 {[%emt 0:00:38]} ({Black should try} 39... e5 $1 {[%cal Re5e4]} 40. Ne1 (40. Nxe5 $2 Re6 $19) 40... e4+ 41. Ke2 Ba3) 40. Nd2 {[%emt 0:01:18] Loses the game.} (40. Nd4 $17 {was necessary.} Rd6 41. Rf2) 40... g4 {[%emt 0:01:43]} 41. Rb1 {[%emt 0:00:48]} Kg5 {[%emt 0:02:10]} 42. Rf1 {[%emt 0:00:47]} e5 {[%emt 0:03:19]} 43. Ke2 {[%emt 0:01:09]} h5 {[%emt 0:02:15]} 44. h4+ $2 {[%emt 0:02:01]} (44. Rd1) 44... Kg6 $19 {[%emt 0:02:13] Black is clearly winning.} ({Don't blunder} 44... gxh3 $2 45. Nf3+ Kh6 46. Rh1 $19) 45. e4 {[%emt 0:00:30]} f4 {[%emt 0:00:18]} 46. gxf4 {[%emt 0:00:11]} exf4 {[%emt 0:00:05]} 47. Rxf4 {[%emt 0:00:18]} Be7 {[%emt 0:00:11]} 48. Rf5 {[%emt 0:01:23]} Bxh4 {[%emt 0:00:37]} 49. Rf8 {[%emt 0:00:19]} Bf6 {[%emt 0:03:34]} 50. Ra8 {[%emt 0:00:50]} h4 {[%emt 0:01:42]} 51. Rg8+ {[%emt 0:00:31]} Bg7 {[%emt 0:01:18] Weighted Error Value: White=0.29 (precise) /Black=0.10 (very precise)} 0-1

[Event "Leca Open 2022"]
[Site "Leca da Palmeira"]
[Date "2022.07.31"]
[Round "2.3"]
[White "Martinez Duany, Lelys Stanley"]
[Black "Pintor, Simao Maciel Abranch"]
[Result "1/2-1/2"]
[ECO "B27"]
[WhiteElo "2497"]
[BlackElo "2062"]
[Annotator "RC"]
[PlyCount "60"]
[EventDate "2022.08.02"]
[EventType "swiss"]
[EventCountry "POR"]
[SourceTitle "playchess.com"]
[Source "ChessBase"]
[SourceQuality "1"]
[TimeControl "5400+30"]

1. e4 {[%emt 0:00:18]} c5 {[%emt 0:00:09]} 2. Nf3 {[%emt 0:00:19]} g6 {[%emt 0:00:14]} 3. c3 {[%emt 0:01:24]} d5 {[%emt 0:00:07]} 4. exd5 {[%emt 0:00:15]} Qxd5 {[%emt 0:00:06]} 5. d4 {[%emt 0:00:08]} Bg7 {[%emt 0:00:05]} 6. Be2 {[%emt 0:01:14]} cxd4 {[%emt 0:05:24]} 7. O-O {[%emt 0:03:16]} Nc6 {[%emt 0:03:51]} 8. cxd4 {[%emt 0:00:38]} Nxd4 {[%emt 0:04:57]} 9. Nxd4 {[%emt 0:00:08]} Qxd4 {[%emt 0:01:53]} 10. Qb3 {[%emt 0:00:10]} Nf6 {[%emt 0:02:02]} 11. Rd1 {[%emt 0:18:36]} Qb6 {[%emt 0:02:42]} 12. Qxb6 {[%emt 0:06:35]} axb6 {[%emt 0:00:35]} 13. Nc3 {[%emt 0:00:45]} O-O {[%emt 0:02:29]} 14. Be3 {[%emt 0:00:29]} Bf5 {[%emt 0:07:37]} 15. Bxb6 {[%emt 0:03:28]} Ne4 {[%emt 0:00:58]} 16. Nd5 {[%emt 0:04:34]} Bxb2 {[%emt 0:03:40]} 17. Nxe7+ {[%emt 0:01:05]} Kh8 {[%emt 0:00:47]} 18. Rab1 {[%emt 0:08:13]} Bf6 {[%emt 0:01:23]} 19. Nxf5 {[%emt 0:01:55]} gxf5 {[%emt 0:01:32]} 20. Rd7 {[%emt 0:03:21]} Nc3 {[%emt 0:04:20]} 21. Re1 {[%emt 0:00:13]} Rfe8 {[%emt 0:01:37]} 22. Kf1 {[%emt 0:00:31]} Rxe2 {[%emt 0:17:48]} 23. Rxe2 {[%emt 0:00:08]} Nxe2 {[%emt 0:00:04]} 24. Kxe2 {[%emt 0:00:08]} Rxa2+ {[%emt 0:00:04]} 25. Kf3 {[%emt 0:01:00]} Kg7 {[%emt 0:01:05]} 26. Rxb7 {[%emt 0:00:57]} Rb2 {[%emt 0:01:08]} 27. Rb8 {[%emt 0:00:07]} Be5 {[%emt 0:00:41]} 28. Bc7 {[%emt 0:00:17]} Bd4 {[%emt 0:03:10]} 29. Rxb2 {[%emt 0:02:16]} Bxb2 {[%emt 0:00:02]} 30. Kf4 {[%emt 0:00:42]} Kg6 {[%emt 0:00:04]} 1/2-1/2

[Event "Leca Open 2022"]
[Site "Leca da Palmeira"]
[Date "2022.07.31"]
[Round "2.4"]
[White "Alvarez Pampillon, Antonio"]
[Black "Spraggett, Kevin"]
[Result "0-1"]
[ECO "A15"]
[WhiteElo "2019"]
[BlackElo "2487"]
[Annotator "RC"]
[PlyCount "68"]
[EventDate "2022.08.02"]
[EventType "swiss"]
[EventCountry "POR"]
[SourceTitle "playchess.com"]
[Source "ChessBase"]
[SourceQuality "1"]
[TimeControl "5400+30"]

1. c4 Nf6 2. g3 e5 3. Bg2 d6 4. Nc3 g6 5. Nf3 Bg7 6. O-O O-O 7. Rb1 a5 8. a3 c6 9. d4 Nbd7 10. b4 axb4 11. axb4 exd4 12. Nxd4 Nb6 13. Qb3 Qe7 14. e4 Ng4 15. Nce2 Ne5 16. c5 dxc5 17. bxc5 Na4 18. Ba3 Re8 19. Ra1 Nd7 20. Qc2 Ra6 21. f4 Nab6 22. e5 Na8 23. Nc3 Nxe5 24. fxe5 Qxe5 25. Nde2 Rxa3 26. Bd5 Rxa1 27. Bxf7+ Kh8 28. Rxa1 Bf5 29. Qa4 Qxc5+ 30. Kg2 Rf8 31. Rc1 Rxf7 32. Qxa8+ Rf8 33. Qxb7 Bc8 34. Ne4 Qe3 0-1

[Event "Leca Open 2022"]
[Site "Leca da Palmeira"]
[Date "2022.07.31"]
[Round "2.5"]
[White "Das, Sayantan"]
[Black "Ladron De Guevara Galar, Francisco Javier"]
[Result "1-0"]
[ECO "C84"]
[WhiteElo "2449"]
[BlackElo "2033"]
[Annotator "RC"]
[PlyCount "95"]
[EventDate "2022.08.02"]
[EventType "swiss"]
[EventCountry "POR"]
[SourceTitle "playchess.com"]
[Source "ChessBase"]
[SourceQuality "1"]
[TimeControl "5400+30"]

1. e4 {[%emt 0:00:43]} e5 {[%emt 0:00:03]} 2. Nf3 {[%emt 0:00:11]} Nc6 {[%emt 0:00:04]} 3. Bb5 {[%emt 0:00:18]} a6 {[%emt 0:00:09]} 4. Ba4 {[%emt 0:00:20]} Nf6 {[%emt 0:00:12]} 5. O-O {[%emt 0:00:32]} Be7 {[%emt 0:00:12]} 6. d3 {[%emt 0:00:39]} b5 {[%emt 0:00:28]} 7. Bb3 {[%emt 0:00:06]} d6 {[%emt 0:00:28]} 8. a3 {[%emt 0:00:32]} Na5 {[%emt 0:00:46]} 9. Ba2 {[%emt 0:00:17]} c5 {[%emt 0:00:22]} 10. Nc3 {[%emt 0:00:46]} O-O {[%emt 0:01:15]} 11. b4 {[%emt 0:07:38]} cxb4 {[%emt 0:08:26]} 12. axb4 {[%emt 0:00:09]} Nc6 {[%emt 0:03:16]} 13. Nd5 {[%emt 0:01:26]} Be6 {[%emt 0:01:28]} 14. Bd2 {[%emt 0:02:42]} Bxd5 {[%emt 0:02:26]} 15. exd5 {[%emt 0:01:41]} Nb8 {[%emt 0:01:33]} 16. Bb3 {[%emt 0:09:07]} Nbd7 {[%emt 0:01:53]} 17. Qe2 {[%emt 0:02:50]} Qb8 {[%emt 0:16:56]} 18. Ra3 {[%emt 0:10:11]} Bd8 {[%emt 0:06:26]} 19. Rfa1 {[%emt 0:05:10]} a5 {[%emt 0:01:05]} 20. bxa5 {[%emt 0:02:11]} Nc5 {[%emt 0:01:13]} 21. d4 {[%emt 0:13:16]} b4 {[%emt 0:02:00]} 22. R3a2 {[%emt 0:02:05]} Nxb3 {[%emt 0:01:05]} 23. cxb3 {[%emt 0:00:03]} e4 {[%emt 0:01:11]} 24. Ng5 {[%emt 0:01:20]} Re8 {[%emt 0:00:55]} 25. Ra4 {[%emt 0:04:54]} Nxd5 {[%emt 0:03:41]} 26. Nxf7 {[%emt 0:02:01]} Qc7 {[%emt 0:19:35]} 27. Nxd8 {[%emt 0:00:47]} Raxd8 {[%emt 0:00:17]} 28. a6 {[%emt 0:02:42]} Qf7 {[%emt 0:01:50]} 29. a7 {[%emt 0:06:53]} Ra8 {[%emt 0:00:33]} 30. Qc4 {[%emt 0:02:37]} Rf8 {[%emt 0:01:36]} 31. Rf1 {[%emt 0:00:28]} Kh8 {[%emt 0:03:03]} 32. Ra5 {[%emt 0:01:11]} Nf4 {[%emt 0:02:31]} 33. Bxf4 {[%emt 0:04:06]} Qxf4 {[%emt 0:00:11]} 34. Qe2 {[%emt 0:02:01]} Rf7 {[%emt 0:02:00]} 35. g3 {[%emt 0:01:50]} Qf3 {[%emt 0:01:57]} 36. Qxf3 {[%emt 0:03:24]} exf3 {[%emt 0:00:21]} 37. Rfa1 {[%emt 0:01:50]} h6 {[%emt 0:00:22]} 38. h3 {[%emt 0:00:44]} Kh7 {[%emt 0:00:57]} 39. g4 {[%emt 0:00:30]} Rc7 {[%emt 0:02:53]} 40. R1a4 {[%emt 0:01:02]} Rb7 {[%emt 0:00:31]} 41. Kh2 {[%emt 0:00:08]} Rc7 {[%emt 0:11:29]} 42. Kg3 {[%emt 0:00:17]} Rf7 {[%emt 0:00:08]} 43. h4 {[%emt 0:00:20]} g6 {[%emt 0:00:56]} 44. Ra6 {[%emt 0:00:18]} g5 {[%emt 0:00:32]} 45. hxg5 {[%emt 0:02:25]} hxg5 {[%emt 0:00:03]} 46. R4a5 {[%emt 0:00:06]} Rf4 {[%emt 0:01:00]} 47. Rxg5 {[%emt 0:00:38]} Rxd4 {[%emt 0:00:36]} 48. Rb5 {[%emt 0:00:10]} 1-0